bitfinex/quotes_BTCUSD_20251230
["timestamp","ask_amount","ask_price","bid_price","bid_amount"]
[1767055859991,0.53282677,87240.0,87228.0,0.0114642]
[1767055860136,0.01073709,87239.0,87228.0,0.0114642]
[1767055860334,0.01148,87240.0,87226.0,0.1463]
[1767055860582,0.5442894,87240.0,87226.0,0.1463]
[1767055860819,0.01146276,87239.0,87226.0,0.15776447]
[1767055861340,0.02294263,87240.0,87227.0,0.01146434]
[1767055861578,0.01146276,87239.0,87226.0,0.15776447]
[1767055861839,0.01146276,87239.0,87226.0,0.1463]
[1767055862049,0.01146302,87237.0,87226.0,0.1463]
[1767055862243,0.01146289,87238.0,87226.0,0.1463]
[1767055863542,0.01146342,87234.0,87225.0,0.01148]
[1767055863698,0.59012625,87236.0,87225.0,0.01148]
[1767055863699,0.01146328,87235.0,87225.0,0.01148]
[1767055864104,0.06877894,87236.0,87225.0,0.01148]
[1767055864315,0.01146328,87235.0,87225.0,0.01148]
[1767055864512,0.01146315,87236.0,87225.0,0.01148]
[1767055865518,0.01146342,87234.0,87225.0,0.01148]
[1767055866107,0.01146328,87235.0,87225.0,0.01148]
[1767055866536,0.01146315,87236.0,87225.0,0.01148]
[1767055866746,0.01146328,87235.0,87225.0,0.01148]
[1767055867530,0.01146328,87235.0,87221.0,0.01146512]
[1767055867930,0.01146315,87236.0,87222.0,0.01146499]
[1767055868348,0.01146328,87235.0,87222.0,0.01146499]
[1767055868951,0.12817358,87233.0,87221.0,0.01146512]
[1767055869152,0.15111713,87233.0,87220.0,0.52134677]
[1767055869470,0.13965358,87233.0,87220.0,0.01146526]
[1767055869666,0.13965358,87233.0,87221.0,0.01146512]
[1767055869846,0.15111713,87233.0,87220.0,0.01146526]
[1767055870054,0.52134677,87230.0,87218.0,0.02294552]
[1767055870305,0.52134677,87230.0,87194.0,0.0001453]
[1767055870306,0.01146434,87227.0,87212.0,0.02306831]
[1767055870470,0.01146434,87227.0,87212.0,0.02317633]
[1767055870471,0.01146447,87226.0,87212.0,0.02317633]
[1767055870797,0.0114646,87225.0,87212.0,0.02317633]
[1767055871094,0.00026465,87219.0,87213.0,0.01146618]
[1767055871294,6.5e-07,87219.0,87212.0,0.02317633]
[1767055871516,6.5e-07,87219.0,87213.0,0.01146618]
[1767055871915,6.5e-07,87219.0,87212.0,0.02317633]
[1767055872370,6.5e-07,87219.0,87212.0,0.01171002]
[1767055872999,6.5e-07,87219.0,87212.0,0.02317633]
[1767055873163,6.5e-07,87219.0,87212.0,0.01171002]
[1767055878077,0.01146486,87223.0,87212.0,0.01171002]
[1767055878684,0.01146473,87224.0,87212.0,0.01171002]
[1767055878883,0.01146486,87223.0,87212.0,0.01171002]
[1767055879460,0.01146473,87224.0,87212.0,0.01171002]
[1767055880312,0.0114646,87225.0,87212.0,0.01171002]
[1767055881113,0.0114646,87225.0,87212.0,0.02317633]
[1767055881409,0.01146473,87224.0,87212.0,0.01171002]
[1767055881815,0.0114646,87225.0,87212.0,0.02317633]
[1767055884830,0.01146473,87224.0,87212.0,0.01171002]
[1767055885128,0.0114646,87225.0,87212.0,0.01171002]
[1767055885698,0.0114646,87225.0,87212.0,0.02317633]
[1767055885902,0.0114646,87225.0,87212.0,0.01171002]
[1767055885903,0.01146486,87223.0,87212.0,0.01171002]
[1767055886110,0.01146473,87224.0,87212.0,0.01171002]
[1767055886719,0.06878858,87224.0,87212.0,0.01171002]
[1767055886925,0.52123583,87222.0,87212.0,0.01171002]
[1767055887731,0.05,87216.0,87212.0,0.01171002]
[1767055888513,0.52123583,87222.0,87216.0,0.000285]
[1767055888718,0.01148,87226.0,87216.0,0.000285]
[1767055888962,0.01148,87226.0,87213.0,0.01146618]
[1767055889156,0.01148,87226.0,87214.0,0.01146604]
[1767055889375,0.01148,87226.0,87215.0,0.01146591]
[1767055890171,0.01148,87226.0,87214.0,0.01146604]
[1767055890473,0.02294447,87226.0,87213.0,0.01146618]
[1767055890622,0.01148,87226.0,87214.0,0.01146604]
[1767055891395,0.01148,87226.0,87215.0,0.01146591]
[1767055891756,0.01148,87226.0,87214.0,0.01146604]
[1767055892375,0.01074615,87225.0,87212.0,0.00023002]
[1767055892575,0.01148,87226.0,87215.0,0.01146591]
[1767055893497,0.01148,87226.0,87218.0,0.05732706]
[1767055893711,0.01148,87226.0,87218.0,0.01146552]
[1767055894297,0.01148,87226.0,87217.0,0.01146565]
[1767055894464,0.01148,87226.0,87218.0,0.01146552]
[1767055895585,0.01148,87226.0,87217.0,0.01146565]
[1767055896280,0.01148,87226.0,87218.0,0.01146552]
[1767055899477,0.01148,87226.0,87216.0,0.01146578]
[1767055900364,0.01148,87226.0,87214.0,0.05732994]
[1767055900757,0.01148,87226.0,87217.0,0.01146565]
[1767055900963,0.01148,87226.0,87218.0,0.01146552]
[1767055901873,0.01148,87226.0,87219.0,0.01146539]
[1767055902106,0.01148,87226.0,87217.0,0.06879378]
[1767055902107,0.01148,87226.0,87217.0,0.01146565]
[1767055902806,0.01148,87226.0,87218.0,0.01146552]
[1767055903008,0.01148,87226.0,87219.0,0.01146539]
[1767055903214,0.01148,87225.0,87219.0,0.01146539]
[1767055904944,0.01148,87225.0,87218.0,0.01146552]
[1767055905526,0.01148,87225.0,87219.0,0.01146539]
[1767055907095,0.01148,87225.0,87218.0,0.01146552]
[1767055908311,0.01148,87225.0,87219.0,0.01146539]
[1767055908762,0.01148,87225.0,87218.0,0.01146552]
[1767055909201,0.01148,87225.0,87219.0,0.01146539]
[1767055910132,0.52123583,87230.0,87219.0,0.01146539]
[1767055910335,0.02223705,87229.0,87219.0,0.01146539]
[1767055910488,0.02223705,87228.0,87219.0,0.01146539]
[1767055910693,0.01075705,87227.0,87219.0,0.01146539]
[1767055910893,0.01075705,87226.0,87220.0,0.01146526]
[1767055911102,0.01148,87228.0,87220.0,0.01146526]
[1767055911286,0.01075707,87227.0,87220.0,0.01146526]
[1767055911487,0.02223707,87226.0,87220.0,0.01146526]
[1767055911724,0.01148,87225.0,87220.0,0.01146526]
[1767055912554,0.52123583,87230.0,87220.0,0.01146526]
[1767055912770,0.01148,87225.0,87220.0,0.01146526]
[1767055914445,0.52123583,87230.0,87221.0,0.01146512]
[1767055914661,0.52123583,87230.0,87220.0,0.01146526]
[1767055914662,0.01148,87225.0,87220.0,0.01146526]
[1767055914867,0.52123583,87230.0,87225.0,0.000285]
[1767055915007,0.01148,87227.0,87222.0,0.01146499]
[1767055915208,0.01148,87229.0,87221.0,0.01146512]
[1767055915414,0.01148,87229.0,87223.0,0.01146486]
[1767055918022,0.01148,87229.0,87222.0,0.01146499]
[1767055918356,0.01148,87229.0,87219.0,0.02293091]
[1767055918561,0.01148,87229.0,87220.0,0.01146526]
[1767055918912,0.01148,87229.0,87219.0,0.01146552]
[1767055919218,0.01148,87229.0,87219.0,0.02293091]
[1767055920377,0.01148,87229.0,87219.0,0.01146552]
[1767055921336,0.01148,87229.0,87219.0,0.02293091]
[1767055921842,0.01148,87229.0,87219.0,0.01146552]
[1767055922989,0.01148,87229.0,87219.0,0.02293091]
[1767055923516,0.01148,87229.0,87219.0,0.01146552]
[1767055925425,0.01148,87229.0,87219.0,0.02293091]
[1767055925651,0.01148,87229.0,87219.0,0.01146552]
[1767055926859,0.01148,87229.0,87219.0,0.01254955]
[1767055927053,0.01148,87229.0,87219.0,0.02401494]
[1767055927280,0.01075938,87228.0,87220.0,0.01146526]
[1767055927439,0.01075938,87227.0,87221.0,0.01146512]
[1767055927636,0.00493354,87226.0,87221.0,0.01146512]
[1767055927839,0.01148,87232.0,87223.0,0.01146486]
[1767055928196,0.01148,87232.0,87224.0,0.01146473]
[1767055928376,0.01148,87232.0,87223.0,0.01146486]
[1767055928974,0.01148,87232.0,87222.0,0.02292788]
[1767055929183,0.01148,87232.0,87223.0,0.01146486]
[1767055929361,0.01148,87232.0,87223.0,0.02294486]
[1767055929560,0.01148,87232.0,87224.0,0.01146473]
[1767055929764,0.01148,87232.0,87225.0,0.0114646]
[1767055929994,0.53269846,87240.0,87223.0,0.08026861]
[1767055929995,0.0001686,87242.0,87229.0,0.01146407]
[1767055930131,0.0001686,87242.0,87235.0,0.01146328]
[1767055930327,0.0001686,87242.0,87234.0,0.01146342]
[1767055930533,0.0001686,87242.0,87236.0,0.01146315]
[1767055930733,0.0001686,87242.0,87235.0,0.01146328]
[1767055931005,0.0001686,87242.0,87234.0,0.01146342]
[1767055931209,0.0001686,87242.0,87235.0,0.01146328]
[1767055931383,0.0001686,87242.0,87234.0,0.01146342]
[1767055931583,0.0001686,87242.0,87235.0,0.01146328]
[1767055931755,0.0001686,87242.0,87234.0,0.01146342]
[1767055931961,0.0001686,87242.0,87232.0,0.01146368]
[1767055932189,0.0001686,87242.0,87233.0,0.01146355]
[1767055932373,0.0001686,87242.0,87232.0,0.01146368]
[1767055933006,0.0001686,87242.0,87233.0,0.01146355]
[1767055934025,0.0001686,87242.0,87232.0,0.01146368]
[1767055934352,0.0001686,87242.0,87234.0,0.01146342]
[1767055934687,0.0001686,87242.0,87233.0,0.01146355]
[1767055936334,0.0001686,87242.0,87231.0,0.01146381]
[1767055936546,0.0001686,87242.0,87230.0,0.06879958]
[1767055936723,0.0001686,87242.0,87231.0,0.01146381]
[1767055936902,0.0001686,87242.0,87230.0,0.01148]
[1767055937933,0.0001686,87242.0,87230.0,0.02294394]
[1767055938178,0.0001686,87242.0,87231.0,0.01146381]
[1767055938927,0.0001686,87242.0,87230.0,0.02294394]
[1767055939168,0.01163096,87242.0,87230.0,0.01148]
[1767055939326,0.0001686,87242.0,87230.0,0.02294394]
[1767055939850,0.01074426,87241.0,87230.0,0.01148]
[1767055940195,0.0001686,87242.0,87230.0,0.01148]
[1767055940196,0.01074426,87240.0,87230.0,0.02294394]
[1767055940391,0.01074426,87239.0,87230.0,0.02294394]
[1767055940704,0.0001686,87242.0,87230.0,0.02294394]
[1767055940876,0.0107441,87241.0,87230.0,0.01148]
[1767055941190,0.0107441,87240.0,87230.0,0.01148]
[1767055941393,0.0107441,87239.0,87230.0,0.02294394]
[1767055941593,0.0001686,87242.0,87230.0,0.02294394]
[1767055941751,0.01074403,87241.0,87230.0,0.02294394]
[1767055941952,0.01074403,87240.0,87230.0,0.01148]
[1767055942181,0.01163096,87242.0,87230.0,0.01148]
[1767055942182,0.01074403,87239.0,87230.0,0.01148]
[1767055942423,0.0001686,87242.0,87230.0,0.02294394]
[1767055942607,0.01074405,87241.0,87230.0,0.01148]
[1767055942762,0.01074405,87240.0,87230.0,0.01148]
[1767055942968,0.01074405,87239.0,87230.0,0.02294394]
[1767055943169,0.0001686,87242.0,87230.0,0.02294394]
[1767055943410,0.01074417,87241.0,87230.0,0.01148]
[1767055943615,0.01163096,87242.0,87230.0,0.01148]
[1767055943616,0.01074417,87240.0,87230.0,0.02294394]
[1767055943816,0.01074417,87239.0,87230.0,0.01148]
[1767055944119,0.01163096,87242.0,87230.0,0.01148]
[1767055944274,0.01074432,87241.0,87230.0,0.01148]
[1767055944470,0.02220695,87240.0,87230.0,0.01148]
[1767055944829,0.01074432,87239.0,87230.0,0.01148]
[1767055945016,0.01163096,87242.0,87230.0,0.01148]
[1767055945220,0.01074438,87241.0,87230.0,0.01148]
[1767055945383,0.01074438,87240.0,87230.0,0.01148]
[1767055945582,0.01074438,87239.0,87230.0,0.01148]
[1767055945804,0.01163096,87242.0,87230.0,0.01148]
[1767055946067,0.01163096,87242.0,87230.0,0.02294394]
[1767055946068,0.01074465,87241.0,87230.0,0.02294394]
[1767055946245,0.01074465,87240.0,87230.0,0.02294394]
[1767055946471,0.01074465,87239.0,87230.0,0.02294394]
[1767055946654,0.0001686,87242.0,87230.0,0.02294394]
[1767055946825,0.01074484,87241.0,87230.0,0.02294394]
[1767055947030,0.01074484,87240.0,87230.0,0.02294394]
[1767055947277,0.01074484,87239.0,87230.0,0.02294394]
[1767055947470,0.0001686,87242.0,87230.0,0.02294394]
[1767055947627,0.01074511,87241.0,87230.0,0.02294394]
[1767055947829,0.01074511,87240.0,87231.0,0.01146381]
[1767055948035,0.01074511,87239.0,87232.0,0.01146368]
[1767055948217,0.0001686,87242.0,87232.0,0.01146368]
[1767055948412,0.01074545,87241.0,87232.0,0.01146368]
[1767055948660,0.01074545,87240.0,87232.0,0.01146368]
[1767055948864,0.01074545,87239.0,87232.0,0.01146368]
[1767055949060,0.0001686,87242.0,87232.0,0.01146368]
[1767055949268,0.01074545,87241.0,87232.0,0.01146368]
[1767055949425,0.01074545,87240.0,87232.0,0.01146368]
[1767055949640,0.01074545,87239.0,87232.0,0.01146368]
[1767055949864,0.01074545,87238.0,87232.0,0.01146368]
[1767055950067,0.0001686,87242.0,87232.0,0.01146368]
[1767055950385,0.0107459,87241.0,87232.0,0.01146368]
[1767055950603,0.0107459,87240.0,87232.0,0.01146368]
[1767055950782,0.0107459,87239.0,87232.0,0.01146368]
[1767055950989,0.0107459,87238.0,87232.0,0.01146368]
[1767055951192,0.0001686,87242.0,87232.0,0.01146368]
[1767055951393,0.01074664,87241.0,87233.0,0.01146355]
[1767055951594,0.01074664,87240.0,87234.0,0.01146342]
[1767055951823,0.01074664,87239.0,87234.0,0.01146342]
[1767055951976,0.01074664,87238.0,87234.0,0.01146342]
[1767055952185,0.0001686,87242.0,87234.0,0.01146342]
[1767055952398,0.01074734,87241.0,87234.0,0.01146342]
[1767055952587,0.01074734,87240.0,87235.0,0.01146328]
[1767055952770,0.01074734,87239.0,87235.0,0.01146328]
[1767055952965,0.0116117,87245.0,87236.0,0.01146315]
[1767055952966,0.0001317,87245.0,87236.0,0.01146315]
[1767055953189,0.0001317,87245.0,87238.0,0.01146289]
[1767055953406,0.0001317,87245.0,87240.0,0.01146263]
[1767055953635,0.0001317,87245.0,87238.0,0.01146289]
[1767055953837,0.0001317,87245.0,87232.0,0.01146368]
[1767055954132,0.0001317,87245.0,87235.0,0.01146328]
[1767055954495,0.0001812,87245.0,87234.0,0.02294342]
[1767055954697,0.0001812,87245.0,87235.0,0.01146328]
[1767055955624,0.0001812,87245.0,87238.0,0.01146289]
[1767055956213,0.0001812,87245.0,87237.0,0.01146302]
[1767055956413,1.2e-06,87245.0,87242.0,0.06877361]
[1767055956619,1.2e-06,87245.0,87242.0,0.01146236]
[1767055956877,1.2e-06,87245.0,87241.0,0.0114625]
[1767055957510,1.2e-06,87245.0,87242.0,0.01146236]
[1767055958499,1.2e-06,87245.0,87241.0,0.0114625]
[1767055958844,1.2e-06,87245.0,87240.0,0.01604901]
[1767055959150,1.2e-06,87245.0,87242.0,0.01146236]
[1767055959353,1.2e-06,87245.0,87241.0,0.0114625]
[1767055959606,1.2e-06,87245.0,87242.0,0.01146236]
[1767055960105,1.2e-06,87245.0,87241.0,0.0114625]
[1767055960302,1.2e-06,87245.0,87240.0,0.01604901]
[1767055960866,1.2e-06,87245.0,87244.0,0.00108403]
[1767055961207,1.2e-06,87245.0,87244.0,0.00053503]
[1767055963255,1.2e-06,87245.0,87240.0,0.00458638]
[1767055963909,0.00055,87240.0,87235.0,0.01146328]
[1767055964115,0.01146289,87238.0,87230.0,0.01148]
[1767055964415,0.01146276,87239.0,87230.0,0.01148]
[1767055964574,0.52100769,87240.0,87230.0,0.01148]
[1767055964777,0.52100769,87240.0,87230.0,0.05734332]
[1767055964977,0.52100769,87240.0,87230.0,0.04587938]
[1767055965176,0.52100769,87240.0,87230.0,0.05734332]
[1767055965986,0.52100769,87240.0,87230.0,0.04587938]
[1767055967782,0.52100769,87240.0,87230.0,0.05734332]
[1767055967981,0.52100769,87240.0,87230.0,0.04587938]
[1767055969015,0.52100769,87240.0,87230.0,0.02294394]
[1767055969216,0.52100769,87240.0,87230.0,0.01148]
[1767055969405,0.52100769,87240.0,87230.0,0.02294394]
[1767055969758,0.52100769,87240.0,87230.0,0.01148]
[1767055970856,0.52100769,87240.0,87230.0,0.02294394]
[1767055971062,0.52100769,87240.0,87230.0,0.01148]
[1767055972734,0.52100769,87240.0,87230.0,0.02294394]
[1767055973473,0.52100769,87240.0,87231.0,0.01146381]
[1767055973701,0.52100769,87240.0,87231.0,0.04586319]
[1767055973920,0.52100769,87240.0,87232.0,0.01146368]
[1767055974279,0.52100769,87240.0,87232.0,0.04586306]
[1767055974622,0.52100769,87240.0,87232.0,0.03439938]
[1767055975514,0.52100769,87242.0,87232.0,0.04586306]
[1767055976026,0.52100769,87242.0,87232.0,0.03439938]
[1767055976243,0.53247005,87242.0,87232.0,0.03439938]
[1767055976931,0.0114625,87241.0,87232.0,0.03439938]
[1767055979368,0.01146276,87239.0,87232.0,0.03439938]
[1767055979571,0.01146263,87240.0,87232.0,0.03439938]
[1767055980118,0.01146263,87240.0,87230.0,0.01148]
[1767055980316,0.0114625,87241.0,87230.0,0.01148]
[1767055980554,0.0114625,87241.0,87231.0,0.03439938]
[1767055981521,0.53247005,87242.0,87231.0,0.03439938]
[1767055981718,0.01074132,87241.0,87231.0,0.03439938]
[1767055981958,0.0114625,87241.0,87231.0,0.03439938]
[1767055982396,0.53247005,87242.0,87231.0,0.03439938]
[1767055982589,0.01146263,87240.0,87230.0,0.01148]
[1767055982790,0.52100769,87240.0,87230.0,0.04587938]
[1767055982995,0.52100769,87240.0,87230.0,0.05734332]
[1767055983298,0.52100769,87240.0,87230.0,0.04587938]
[1767055984114,0.53247032,87240.0,87230.0,0.04587938]
[1767055984470,0.52100769,87240.0,87230.0,0.04587938]
[1767055987503,0.52100769,87240.0,87230.0,0.05734332]
[1767055988923,0.52100769,87240.0,87230.0,0.02294394]
[1767055989591,0.52100769,87240.0,87230.0,0.01148]
[1767055990543,0.52100769,87240.0,87230.0,0.02294394]
[1767055991005,0.52100769,87240.0,87230.0,0.01148]
[1767055991231,0.52100769,87240.0,87230.0,0.02294394]
[1767055991484,0.52100769,87240.0,87230.0,0.01148]
[1767055992166,0.52100769,87240.0,87230.0,0.02294394]
[1767055992408,0.01074654,87239.0,87230.0,0.02294394]
[1767055992655,0.52100769,87240.0,87230.0,0.02294394]
[1767055992876,0.01074585,87239.0,87230.0,0.01148]
[1767055993093,0.52100769,87240.0,87230.0,0.01148]
[1767055993285,0.01074583,87239.0,87230.0,0.01148]
[1767055993507,0.01074583,87238.0,87230.0,0.01148]
[1767055993734,0.52100769,87240.0,87230.0,0.01148]
[1767055993955,0.00055,87230.0,87220.0,0.01161056]
[1767055994177,0.52100769,87230.0,87222.0,0.01148]
[1767055994406,0.01146381,87231.0,87222.0,0.01148]
[1767055994642,0.53247137,87232.0,87222.0,0.01148]
[1767055994882,0.52100769,87232.0,87222.0,0.01148]
[1767055995609,0.52100769,87232.0,87223.0,0.01146486]
[1767055995843,0.0229425,87241.0,87225.0,0.0114646]
[1767055996057,0.02220433,87240.0,87232.0,0.000549]
[1767055996267,0.02220446,87239.0,87224.0,0.01146473]
[1767055996483,0.02220459,87238.0,87225.0,0.0114646]
[1767055996689,0.0107417,87237.0,87225.0,0.0114646]
[1767055996887,0.0107417,87236.0,87224.0,0.01146473]
[1767055997037,0.0107417,87235.0,87224.0,0.01146473]
[1767055997237,0.0107417,87234.0,87224.0,0.01146473]
[1767055997435,0.01146289,87238.0,87224.0,0.01146473]
[1767055997765,0.01073959,87237.0,87225.0,0.0114646]
[1767055997970,0.01073959,87236.0,87225.0,0.0114646]
[1767055998147,0.01073959,87235.0,87230.0,0.00108403]
[1767055998350,0.01073959,87234.0,87230.0,0.00108403]
[1767055998696,0.01146289,87238.0,87230.0,0.00108403]
[1767055998869,0.02220184,87237.0,87230.0,0.00108403]
[1767055999081,0.01073882,87236.0,87230.0,0.00108403]
[1767055999277,0.01146276,87239.0,87230.0,0.00108403]
[1767055999278,0.01073882,87235.0,87230.0,0.00108403]
[1767055999485,0.01073882,87234.0,87230.0,0.00108403]
[1767055999683,0.01146276,87239.0,87230.0,0.00108403]
[1767055999883,0.01073814,87238.0,87230.0,0.00108403]
[1767056000045,0.01073814,87237.0,87230.0,0.00108403]
[1767056000248,0.01045535,87236.0,87230.0,0.00108403]
[1767056000466,0.01146263,87240.0,87230.0,0.00108403]
[1767056000690,0.01146289,87238.0,87230.0,0.00108403]
[1767056000900,0.06877583,87240.0,87230.0,0.00108403]
[1767056001048,0.01146276,87239.0,87230.0,0.00108403]
[1767056001247,0.01146289,87238.0,87230.0,0.00108403]
[1767056002225,0.0114621,87244.0,87230.0,0.00108403]
[1767056002424,0.01146263,87240.0,87230.0,0.00108403]
[1767056002992,0.01148,87241.0,87230.0,0.00108403]
[1767056003196,0.0229425,87241.0,87230.0,0.00108403]
[1767056003819,0.01148,87241.0,87230.0,0.00108403]
[1767056004396,0.01148,87241.0,87230.0,0.01254797]
[1767056004584,0.01148,87241.0,87230.0,0.00108403]
[1767056004922,0.01148,87241.0,87231.0,0.01146381]
[1767056005133,0.01148,87241.0,87230.0,0.01254797]
[1767056005340,0.01148,87241.0,87230.0,0.00108403]
[1767056006853,0.01146263,87240.0,87230.0,0.00108403]
[1767056007061,0.01148,87241.0,87230.0,0.00108403]
[1767056007845,0.01148,87241.0,87230.0,0.01254797]
[1767056008048,0.01148,87241.0,87230.0,0.00108403]
[1767056008636,0.01146302,87237.0,87230.0,0.00108403]
[1767056008872,0.01146315,87236.0,87230.0,0.00108403]
[1767056009087,0.01146315,87236.0,87222.0,0.02294499]
[1767056009088,0.00054597,87230.0,87222.0,0.02294499]
[1767056009389,0.01146342,87234.0,87222.0,0.01148]
[1767056009588,0.01146328,87235.0,87222.0,0.01148]
[1767056009888,0.01146328,87235.0,87222.0,0.02294499]
[1767056010256,0.01146328,87235.0,87222.0,0.01148]
[1767056010458,0.01146328,87235.0,87222.0,0.02294499]
[1767056011036,0.01146315,87236.0,87222.0,0.02294499]
[1767056011750,0.01146302,87237.0,87223.0,0.01146486]
[1767056011976,0.01146276,87239.0,87223.0,0.01146486]
[1767056012176,0.03367784,87238.0,87224.0,0.01146473]
[1767056012336,0.01073495,87237.0,87224.0,0.01146473]
[1767056012536,0.01073495,87236.0,87223.0,0.01146486]
[1767056012741,0.01146302,87237.0,87223.0,0.01146486]
[1767056012964,0.01073455,87236.0,87223.0,0.01146486]
[1767056013180,0.01146315,87236.0,87223.0,0.01146486]
[1767056013417,0.01146302,87237.0,87224.0,0.01146473]
[1767056013562,0.01073473,87236.0,87223.0,0.01146486]
[1767056013761,0.01073474,87235.0,87223.0,0.01146486]
[1767056014077,0.01146315,87236.0,87222.0,0.04588998]
[1767056014272,0.01073474,87235.0,87222.0,0.03442499]
[1767056014449,0.01146328,87235.0,87222.0,0.04588998]
[1767056016051,0.01146315,87236.0,87222.0,0.04588998]
[1767056016345,0.02219906,87235.0,87222.0,0.04588998]
[1767056016548,0.01146328,87235.0,87222.0,0.04588998]
[1767056019962,0.01146328,87235.0,87222.0,0.03442499]
[1767056020461,0.01146328,87235.0,87222.0,0.04588998]
[1767056020662,0.01146342,87234.0,87222.0,0.03442499]
[1767056020960,0.01146328,87235.0,87222.0,0.04588998]
[1767056021309,0.01073894,87234.0,87222.0,0.04588998]
[1767056021541,0.01146328,87235.0,87222.0,0.03442499]
[1767056021746,0.01073894,87234.0,87222.0,0.01148]
[1767056021952,0.01146315,87236.0,87222.0,0.01148]
[1767056022149,0.02220221,87235.0,87222.0,0.02294499]
[1767056022351,0.01073893,87234.0,87222.0,0.02294499]
[1767056022555,0.01146315,87236.0,87222.0,0.0451472]
[1767056022811,0.01073994,87235.0,87223.0,0.01146486]
[1767056023021,0.01073994,87234.0,87223.0,0.01146486]
[1767056023187,0.05731578,87236.0,87222.0,0.03368221]
[1767056023389,0.01073993,87235.0,87223.0,0.01146486]
[1767056023610,0.01073993,87234.0,87223.0,0.01146486]
[1767056023818,0.01073993,87233.0,87223.0,0.01146486]
[1767056023987,0.01146328,87235.0,87222.0,0.0451472]
[1767056024186,0.01074119,87234.0,87224.0,0.01146473]
[1767056024394,0.01074119,87233.0,87224.0,0.01146473]
[1767056024591,0.01146328,87235.0,87222.0,0.0451472]
[1767056024807,0.01074143,87234.0,87222.0,0.0451472]
[1767056025131,0.01074143,87233.0,87222.0,0.0451472]
[1767056025328,0.02294289,87238.0,87222.0,0.0451472]
[1767056025329,0.01146328,87235.0,87222.0,0.03368221]
[1767056025524,0.01074172,87234.0,87222.0,0.03368221]
[1767056025737,0.01074172,87233.0,87222.0,0.0451472]
[1767056026027,0.01146355,87233.0,87222.0,0.03368221]
[1767056026445,0.01146328,87235.0,87222.0,0.03368221]
[1767056026723,0.01074184,87234.0,87222.0,0.03368221]
[1767056026872,0.01074184,87233.0,87222.0,0.03368221]
[1767056027073,0.01146302,87237.0,87222.0,0.0451472]
[1767056027275,0.01074184,87236.0,87222.0,0.0451472]
[1767056027472,0.01074184,87235.0,87222.0,0.0451472]
[1767056027676,0.01074184,87234.0,87222.0,0.0451472]
[1767056027896,0.01074184,87233.0,87222.0,0.0451472]
[1767056028092,0.01146342,87234.0,87222.0,0.03368221]
[1767056028293,0.521067,87232.0,87222.0,0.01148]
[1767056028932,0.01146355,87233.0,87222.0,0.01148]
[1767056029330,0.01146342,87234.0,87222.0,0.01148]
[1767056029532,0.0107421,87233.0,87222.0,0.01148]
[1767056029715,0.01146328,87235.0,87222.0,0.01148]
[1767056029909,0.01074211,87234.0,87222.0,0.02294499]
[1767056030191,0.01074211,87233.0,87222.0,0.02294499]
[1767056030390,0.01146328,87235.0,87222.0,0.01148]
[1767056030632,0.01074208,87234.0,87222.0,0.01148]
[1767056030813,0.02220563,87233.0,87222.0,0.01148]
[1767056031014,0.01146342,87234.0,87222.0,0.01148]
[1767056031332,0.01074208,87233.0,87222.0,0.01148]
[1767056031534,0.01146328,87235.0,87222.0,0.01148]
[1767056031713,0.01074199,87234.0,87223.0,0.01146486]
[1767056031915,0.01074199,87233.0,87222.0,0.04515062]
[1767056032117,0.01146328,87235.0,87222.0,0.04515062]
[1767056032432,0.01074199,87234.0,87222.0,0.04515062]
[1767056032628,0.01074199,87233.0,87222.0,0.03368563]
[1767056032839,0.01074199,87232.0,87222.0,0.03368563]
[1767056033066,0.01146355,87233.0,87222.0,0.01148]
[1767056033231,0.01074184,87232.0,87222.0,0.02294342]
[1767056033433,0.01146328,87235.0,87222.0,0.03440841]
[1767056033629,0.01074124,87234.0,87222.0,0.03440841]
[1767056033832,0.01074124,87233.0,87222.0,0.01146499]
[1767056034070,0.01074124,87232.0,87223.0,0.03440309]
[1767056034250,0.01146342,87234.0,87223.0,0.03440309]
[1767056034456,0.01074156,87233.0,87223.0,0.03440309]
[1767056034655,0.01074156,87232.0,87223.0,0.03440309]
[1767056034976,0.01146342,87234.0,87223.0,0.03440309]
[1767056035134,0.01074156,87233.0,87223.0,0.03440309]
[1767056035478,0.01074156,87232.0,87223.0,0.03440309]
[1767056035650,0.01146342,87234.0,87223.0,0.03440309]
[1767056035858,0.01074198,87233.0,87223.0,0.03440309]
[1767056036053,0.01074198,87232.0,87223.0,0.03440309]
[1767056036402,0.01146328,87235.0,87223.0,0.03440309]
[1767056036542,0.01074256,87234.0,87223.0,0.04586795]
[1767056036736,0.01074256,87233.0,87223.0,0.03440309]
[1767056036966,0.01074256,87232.0,87221.0,0.02294512]
[1767056037158,0.01146328,87235.0,87222.0,0.01146328]
[1767056037378,0.01074256,87234.0,87222.0,0.02292827]
[1767056037682,0.01074256,87233.0,87222.0,0.01146328]
[1767056037881,0.01074256,87233.0,87221.0,0.02294512]
[1767056038081,0.01074256,87233.0,87223.0,0.02292814]
[1767056038290,0.01074256,87232.0,87223.0,0.01146328]
[1767056038446,0.01074256,87231.0,87223.0,0.01146328]
[1767056038642,0.01146328,87235.0,87223.0,0.01146328]
[1767056038882,0.01074363,87234.0,87223.0,0.01146328]
[1767056039087,0.01074363,87233.0,87223.0,0.01146328]
[1767056039397,0.01074363,87232.0,87223.0,0.01146328]
[1767056039546,0.01074363,87231.0,87223.0,0.01146328]
[1767056039746,0.01146328,87235.0,87223.0,0.01146328]
[1767056039968,0.01074361,87234.0,87223.0,0.01146328]
[1767056040167,0.01074361,87233.0,87223.0,0.01146328]
[1767056040398,0.01074361,87232.0,87223.0,0.01146328]
[1767056040551,0.01074361,87231.0,87223.0,0.01146328]
[1767056040772,0.01146315,87236.0,87223.0,0.02292814]
[1767056040953,0.01074363,87235.0,87223.0,0.02292814]
[1767056041150,0.01074363,87234.0,87221.0,0.02294512]
[1767056041382,0.01074363,87233.0,87224.0,0.02294512]
[1767056041578,0.01074363,87232.0,87224.0,0.02294512]
[1767056041756,0.01146315,87236.0,87224.0,0.02294512]
[1767056041757,0.01074363,87231.0,87224.0,0.02294512]
[1767056041959,0.01146315,87236.0,87224.0,0.02294512]
[1767056042155,0.01074363,87235.0,87224.0,0.02294512]
[1767056042514,0.01074363,87234.0,87223.0,0.01146486]
[1767056042656,0.01074363,87233.0,87223.0,0.01146486]
[1767056042863,0.01146315,87236.0,87224.0,0.01148]
[1767056042864,0.01074363,87232.0,87224.0,0.01148]
[1767056043044,0.01146315,87236.0,87224.0,0.01148]
[1767056043241,0.00965827,87235.0,87224.0,0.02294473]
[1767056043581,0.01146315,87236.0,87223.0,0.01146486]
[1767056044103,0.01146315,87236.0,87223.0,0.02294486]
[1767056045898,0.01146328,87235.0,87222.0,0.01146499]
[1767056046293,0.01146328,87235.0,87222.0,0.02294499]
[1767056046500,0.01146315,87236.0,87223.0,0.01146486]
[1767056047299,0.01146328,87235.0,87222.0,0.02294499]
[1767056047740,0.01146328,87235.0,87222.0,0.01148]
[1767056047741,0.01146342,87234.0,87222.0,0.01148]
[1767056047983,0.01146355,87233.0,87222.0,0.01148]